fUST/lending_fUST_20250628
["ID","MTS","AMOUNT","RATE_DAILY","PERIOD"]
[368238672,1751069449580,-500.0,0.00021573,2]
[368238673,1751069449590,-500.0,0.00021588,2]
[368238674,1751069449599,-500.0,0.00021588,2]
[368238675,1751069449608,-509.0,0.00021593,2]
[368238676,1751069449617,-500.0,0.000216,2]
[368238677,1751069449627,-1500.0,0.00021605,2]
[368238678,1751069449637,-311.2,0.00021629,4]
[368238679,1751069449646,-460.0,0.00021643,2]
[368238680,1751069449655,-460.0,0.00021643,2]
[368238681,1751069449664,-460.0,0.00021643,2]
[368238682,1751069449673,-151.0,0.00021643,2]
[368238683,1751069449682,-151.0,0.00021643,2]
[368238684,1751069449691,-601.84,0.00021643,2]
[368238685,1751069449701,-227.03,0.00021643,2]
[368238686,1751069449710,-172.4531322,0.00021643,2]
[368238687,1751069449719,-155.218412,0.00021643,2]
[368238688,1751069449728,-155.218412,0.00021643,2]
[368238689,1751069449737,-460.0,0.00021643,2]
[368238690,1751069449747,-937.89,0.00021643,2]
[368238691,1751069449756,-606.81,0.00021643,2]
[368238692,1751069449765,-460.0,0.00021643,2]
[368238693,1751069449774,-1238.93,0.00021643,2]
[368238694,1751069449783,-553.24,0.00021643,2]
[368238695,1751069449792,-158.11158878,0.00021643,2]
[368238696,1751069449802,-461.91124575,0.00021643,2]
[368238697,1751069449811,-611.21,0.00021643,2]
[368238698,1751069449820,-460.0,0.00021643,2]
[368238699,1751069449829,-460.0,0.00021643,2]
[368238700,1751069449838,-460.0,0.00021643,2]
[368238701,1751069449848,-460.0,0.00021643,2]
[368238702,1751069449858,-460.0,0.00021643,2]
[368238703,1751069449871,-460.0,0.00021643,2]
[368238704,1751069449879,-151.0,0.00021643,2]
[368238705,1751069449890,-151.0,0.00021643,2]
[368238706,1751069449900,-151.0,0.00021643,2]
[368238707,1751069449910,-211.71794713,0.00021643,2]
[368238708,1751069449919,-1032.55,0.00021643,2]
[368238709,1751069449928,-460.0,0.00021643,2]
[368238710,1751069449938,-460.0,0.00021643,2]
[368238711,1751069449947,-460.0,0.00021643,2]
[368238712,1751069449957,-460.0,0.00021643,2]
[368238713,1751069449967,-656.78,0.00021643,2]
[368238714,1751069449976,-460.0,0.00021643,2]
[368238715,1751069449985,-755.37,0.00021643,2]
[368238716,1751069449994,-460.0,0.00021643,2]
[368238717,1751069450004,-460.0,0.00021643,2]
[368238718,1751069450014,-460.0,0.00021643,2]
[368238719,1751069450023,-460.0,0.00021643,2]
[368238720,1751069450032,-933.29,0.00021643,2]
[368238721,1751069450042,-2856.14,0.00021643,2]
[368238722,1751069450052,-4301.97,0.00021643,2]
[368238723,1751069450062,-460.0,0.00021643,2]
[368238724,1751069450072,-2953.07,0.00021643,2]
[368238725,1751069450081,-683.51,0.00021643,2]
[368238726,1751069450091,-623.39,0.00021643,2]
[368238727,1751069450100,-967.54,0.00021643,2]
[368238728,1751069450109,-460.0,0.00021643,2]
[368238729,1751069450119,-1174.69,0.00021643,2]
[368238730,1751069450128,-781.08,0.00021643,2]
[368238731,1751069450137,-1594.3,0.00021643,2]
[368238732,1751069450147,-868.86,0.00021643,2]
[368238733,1751069450156,-7532.63,0.00021643,2]
[368238734,1751069450166,-460.0,0.00021643,2]
[368238735,1751069450175,-776.77,0.00021643,2]
[368238736,1751069450185,-460.0,0.00021643,2]
[368238737,1751069450194,-460.0,0.00021643,2]
[368238738,1751069450203,-460.0,0.00021643,2]
[368238739,1751069450213,-778.82,0.00021643,2]
[368238740,1751069450222,-6548.65,0.00021643,2]
[368238741,1751069450231,-304.861779,0.00021643,2]
[368238742,1751069450241,-4565.03,0.00021643,2]
[368238743,1751069450251,-304.861779,0.00021643,2]
[368238744,1751069450260,-460.0,0.00021643,2]
[368238745,1751069450269,-837.56,0.00021643,2]
[368238746,1751069450278,-151.0,0.00021643,2]
[368238747,1751069450287,-2056.83,0.00021643,2]
[368238748,1751069450296,-773.6,0.00021643,2]
[368238749,1751069450307,-1651.62,0.00021643,2]
[368238750,1751069450316,-460.0,0.00021643,2]
[368238751,1751069450325,-2412.84,0.00021643,2]
[368238752,1751069450334,-460.0,0.00021643,2]
[368238753,1751069450343,-1798.36,0.00021643,2]
[368238754,1751069450352,-156.55555328,0.00021643,2]
[368238755,1751069450361,-881.93,0.00021643,2]
[368238756,1751069450370,-460.0,0.00021643,2]
[368238757,1751069450380,-708.68,0.00021643,2]
[368238758,1751069450389,-803.91,0.00021643,2]
[368238759,1751069450510,-1121.1,0.00021643,2]
[368238760,1751069450520,-2234.01,0.00021643,2]
[368238761,1751069450530,-1658.66,0.00021643,2]
[368238762,1751069450539,-1380.32,0.00021643,2]
[368238763,1751069450548,-993.99,0.00021643,2]
[368238764,1751069450558,-630.39,0.00021643,2]
[368238765,1751069450567,-785.84,0.00021643,2]
[368238766,1751069450577,-845.02,0.00021643,2]
[368238767,1751069450586,-767.01,0.00021643,2]
[368238768,1751069450595,-549.0,0.00021643,2]
[368238769,1751069450605,-374.97396452,0.00021643,2]
[368238770,1751069450614,-546.95,0.00021643,2]
[368238771,1751069450623,-2948.91,0.00021643,2]
[368238772,1751069450635,-2571.3,0.00021643,2]
[368238773,1751069450644,-888.04,0.00021643,2]
[368238774,1751069450654,-665.68,0.00021643,2]
[368238775,1751069450663,-753.53,0.00021643,2]
[368238776,1751069450675,-903.14,0.00021643,2]
[368238777,1751069450686,-1322.41,0.00021643,2]
[368238778,1751069450696,-152.006539,0.00021643,2]
[368238779,1751069450705,-547.1896355,0.00021643,2]
[368238780,1751069450715,-1293.98,0.00021643,2]
[368238781,1751069450725,-460.0,0.00021643,2]
[368238782,1751069450734,-500.0,0.00021657,2]
[368238783,1751069450743,-500.0,0.00021657,2]
[368238784,1751069450752,-500.0,0.00021657,2]
[368238785,1751069450761,-500.0,0.00021657,2]
[368238786,1751069450771,-500.0,0.00021657,2]
[368238787,1751069450780,-500.0,0.00021657,2]
[368238788,1751069450790,-500.0,0.00021657,2]
[368238789,1751069450799,-500.0,0.00021657,2]
[368238790,1751069450809,-3687.37,0.000217,2]
[368238791,1751069450819,-152.636,0.0002171,2]
[368238792,1751069450830,-242.589,0.0002171,2]
[368238793,1751069450840,-200.32,0.0002171,2]
[368238794,1751069450850,-155.01070379,0.00021726,2]
[368238795,1751069450862,-6289.26151161,0.00021728,5]
[368238796,1751069450872,-151.0,0.00021728,2]
[368238797,1751069450882,-151.0,0.00021728,2]
[368238798,1751069450892,-1275.810033,0.00021747,4]
[368238799,1751069450903,-500.0,0.0002178,17]
[368238800,1751069450912,-5933.15220565,0.00021798,2]
[368238801,1751069450922,-3000.0,0.000218,2]
[368238802,1751069450933,-3000.0,0.0002181,2]
[368238803,1751069450944,-3000.0,0.0002182,2]
[368238804,1751069450954,-3000.0,0.0002183,2]
[368238805,1751069450964,-3000.0,0.0002184,2]
[368238806,1751069450973,-3000.0,0.0002185,2]
[368238807,1751069450983,-3000.0,0.0002186,2]
[368238808,1751069450992,-3000.0,0.0002187,2]
[368238809,1751069451002,-3000.0,0.0002188,2]
[368238810,1751069451012,-151.0,0.0002188,2]
[368238811,1751069451021,-299.852666,0.0002188,2]
[368238812,1751069451030,-299.852666,0.0002188,2]
[368238813,1751069451039,-3000.0,0.0002189,2]
[368238814,1751069451049,-3000.0,0.000219,2]
[368238815,1751069451060,-500.0,0.00021903,2]
[368238816,1751069451069,-500.0,0.00021906,2]
[368238817,1751069451079,-3000.0,0.0002191,2]
[368238818,1751069451088,-5000.0,0.0002191,2]
[368238819,1751069451097,-460.0,0.00021917,2]
[368238820,1751069451106,-201.95662886,0.00021917,2]
[368238821,1751069451115,-214.26261564,0.00021917,2]
[368238822,1751069451125,-151.0,0.00021917,2]
[368238823,1751069451134,-460.0,0.00021917,2]
[368238824,1751069451144,-460.0,0.00021917,2]
[368238825,1751069451153,-151.0,0.00021917,2]
[368238826,1751069451162,-937.89,0.00021917,2]
[368238827,1751069451171,-606.81,0.00021917,2]
[368238828,1751069451180,-460.0,0.00021917,2]
[368238829,1751069451189,-1238.93,0.00021917,2]
[368238830,1751069451199,-500.0,0.00021917,2]
[368238831,1751069451208,-500.0,0.00021917,2]
[368238832,1751069451218,-500.0,0.00021917,2]
[368238833,1751069451227,-500.0,0.00021917,2]
[368238834,1751069451237,-500.0,0.00021917,2]
[368238835,1751069451246,-500.0,0.00021917,2]
[368238836,1751069451255,-500.0,0.00021917,2]
[368238837,1751069451265,-500.0,0.00021917,2]
[368238838,1751069451273,-500.0,0.00021917,2]
[368238839,1751069451282,-500.0,0.00021917,2]
[368238840,1751069451292,-500.0,0.00021917,2]
[368238841,1751069451301,-553.24,0.00021917,2]
[368238842,1751069451310,-611.21,0.00021917,2]
[368238843,1751069451319,-460.0,0.00021917,2]
[368238844,1751069451328,-460.0,0.00021917,2]
[368238845,1751069451337,-460.0,0.00021917,2]
[368238846,1751069451347,-460.0,0.00021917,2]
[368238847,1751069451356,-460.0,0.00021917,2]
[368238848,1751069451366,-460.0,0.00021917,2]
[368238849,1751069451376,-1032.55,0.00021917,2]
[368238850,1751069451385,-460.0,0.00021917,2]
[368238851,1751069451396,-460.0,0.00021917,2]
[368238852,1751069451405,-460.0,0.00021917,2]
[368238853,1751069451414,-460.0,0.00021917,2]
[368238854,1751069451425,-656.78,0.00021917,2]
[368238855,1751069451434,-460.0,0.00021917,2]
[368238856,1751069451444,-755.37,0.00021917,2]
[368238857,1751069451453,-151.0,0.00021917,2]
[368238858,1751069451463,-460.0,0.00021917,2]
[368238859,1751069451473,-460.0,0.00021917,2]
[368238860,1751069451483,-291.23006975,0.00021917,2]
[368238861,1751069451492,-933.29,0.00021917,2]
[368238862,1751069451502,-2856.14,0.00021917,2]
[368238863,1751069451512,-4301.97,0.00021917,2]
[368238864,1751069451523,-151.0,0.00021917,2]
[368238865,1751069451532,-151.0,0.00021917,2]
[368238866,1751069451542,-460.0,0.00021917,2]
[368238867,1751069451552,-2953.07,0.00021917,2]
[368238868,1751069451562,-666.482233,0.00021917,2]
[368238869,1751069451571,-460.0,0.00021917,2]
[368238870,1751069451581,-151.0,0.00021917,2]
[368238871,1751069451591,-460.0,0.00021917,2]
[368238872,1751069451601,-460.0,0.00021917,2]
[368238873,1751069451611,-500.00409345,0.00021917,2]
[368238874,1751069451621,-666.482233,0.00021917,2]
[368238875,1751069451631,-683.51,0.00021917,2]
[368238876,1751069451641,-623.39,0.00021917,2]
[368238877,1751069451651,-967.54,0.00021917,2]
[368238878,1751069451660,-151.0,0.00021917,2]
[368238879,1751069451670,-280.82,0.00021917,2]
[368238880,1751069451680,-151.0,0.00021917,2]
[368238881,1751069451690,-1174.69,0.00021917,2]
[368238882,1751069451700,-781.08,0.00021917,2]
[368238883,1751069451710,-1594.3,0.00021917,2]
[368238884,1751069451719,-868.86,0.00021917,2]
[368238885,1751069451728,-7532.63,0.00021917,2]
[368238886,1751069451738,-460.0,0.00021917,2]
[368238887,1751069451748,-151.0,0.00021917,2]
[368238888,1751069451757,-776.77,0.00021917,2]
[368238889,1751069451767,-460.0,0.00021917,2]
[368238890,1751069451777,-460.0,0.00021917,2]
[368238891,1751069451787,-460.0,0.00021917,2]
[368238892,1751069451796,-778.82,0.00021917,2]
[368238893,1751069451805,-6548.65,0.00021917,2]
[368238894,1751069451814,-4565.03,0.00021917,2]
[368238895,1751069451824,-460.0,0.00021917,2]
[368238896,1751069451834,-837.56,0.00021917,2]
[368238897,1751069451843,-2056.83,0.00021917,2]
[368238898,1751069451853,-773.6,0.00021917,2]
[368238899,1751069451866,-1651.62,0.00021917,2]
[368238900,1751069451876,-460.0,0.00021917,2]
[368238901,1751069451885,-2412.84,0.00021917,2]
[368238902,1751069451895,-460.0,0.00021917,2]
[368238903,1751069451904,-1798.36,0.00021917,2]
[368238904,1751069451914,-151.0,0.00021917,2]
[368238905,1751069451924,-151.0,0.00021917,2]
[368238906,1751069451933,-881.93,0.00021917,2]
[368238907,1751069451943,-278.915758,0.00021917,2]
[368238908,1751069451953,-460.0,0.00021917,2]
[368238909,1751069451963,-151.0,0.00021917,2]
[368238910,1751069451973,-566.14467994,0.00021917,2]
[368238911,1751069451983,-151.0,0.00021917,2]
[368238912,1751069451992,-708.68,0.00021917,2]
[368238913,1751069452002,-803.91,0.00021917,2]
[368238914,1751069452011,-1121.1,0.00021917,2]
[368238915,1751069452020,-151.0,0.00021917,2]
[368238916,1751069452030,-2234.01,0.00021917,2]
[368238917,1751069452039,-1380.32,0.00021917,2]
[368238918,1751069452048,-1658.66,0.00021917,2]
[368238919,1751069452058,-993.99,0.00021917,2]
[368238920,1751069452070,-630.39,0.00021917,2]
[368238921,1751069452080,-785.84,0.00021917,2]
[368238922,1751069452090,-845.02,0.00021917,2]
[368238923,1751069452099,-767.01,0.00021917,2]
[368238924,1751069452109,-549.0,0.00021917,2]
[368238925,1751069452118,-546.95,0.00021917,2]
[368238926,1751069452127,-2948.91,0.00021917,2]
[368238927,1751069452137,-500.0,0.00021917,2]
[368238928,1751069452147,-500.0,0.00021917,2]
[368238929,1751069452156,-2571.3,0.00021917,2]
[368238930,1751069452165,-888.04,0.00021917,2]
[368238931,1751069452174,-665.68,0.00021917,2]
[368238932,1751069452183,-197.086534,0.00021917,2]
[368238933,1751069452192,-753.53,0.00021917,2]
[368238934,1751069452201,-197.086534,0.00021917,2]
[368238935,1751069452210,-903.14,0.00021917,2]
[368238936,1751069452220,-1322.41,0.00021917,2]
[368238937,1751069452229,-3883.13150173,0.00021917,2]
[368238938,1751069452239,-278.379418,0.00021917,2]
[368238939,1751069452248,-460.0,0.00021917,2]
[368238940,1751069452258,-1293.98,0.00021917,2]
[368238941,1751069452267,-278.379418,0.00021917,2]
[368238942,1751069452275,-153.0,0.00021918,2]
[368238943,1751069452285,-153.0,0.00021918,2]
[368238944,1751069452294,-153.0,0.00021918,2]
[368238945,1751069452304,-153.0,0.00021918,2]
[368238946,1751069452313,-153.0,0.00021918,2]
[368238947,1751069452322,-153.0,0.00021918,2]
[368238948,1751069452331,-153.0,0.00021918,2]
[368238949,1751069452341,-153.0,0.00021918,2]
[368238950,1751069452350,-153.0,0.00021918,2]
[368238951,1751069452359,-153.0,0.00021918,2]
[368238952,1751069452368,-153.0,0.00021918,2]
[368238953,1751069452377,-153.0,0.00021918,2]
[368238954,1751069452386,-500.0,0.00021918,2]
[368238955,1751069452396,-500.0,0.00021918,2]
[368238956,1751069452405,-518.03664922,0.00021918,2]
[368238957,1751069452415,-3000.0,0.0002192,2]
[368238958,1751069452425,-1000.0,0.00021927,2]
[368238959,1751069452434,-3000.0,0.0002193,2]
[368238960,1751069452443,-160.800168,0.0002193,7]
[368238961,1751069452453,-302.443063,0.0002193,7]
[368238962,1751069452463,-302.443063,0.0002193,7]
[368238963,1751069452472,-978.942829,0.0002193,7]
[368238964,1751069452481,-211.248514,0.0002193,7]
[368238965,1751069452490,-978.942829,0.0002193,7]
[368238966,1751069452499,-211.248514,0.0002193,7]
[368238967,1751069452509,-178.490075,0.0002193,7]
[368238968,1751069452519,-178.490075,0.0002193,7]
[368238969,1751069452528,-6289.26151161,0.00021934,6]
[368238970,1751069452538,-3000.0,0.0002194,2]
[368238971,1751069452547,-509.0,0.0002194,2]
[368238972,1751069452557,-500.0,0.00021948,2]
[368238973,1751069452566,-3000.0,0.0002195,2]
[368238974,1751069452575,-500.0,0.00021957,2]
[368238975,1751069452584,-3000.0,0.0002196,2]
[368238976,1751069452594,-311.2,0.00021968,4]
[368238977,1751069452603,-3000.0,0.0002197,2]
[368238978,1751069452612,-177.4788171,0.00021973,2]
[368238979,1751069452621,-177.4788171,0.00021973,2]
[368238980,1751069452632,-153.0,0.00021973,2]
[368238981,1751069452641,-177.3524477,0.00021973,2]
[368238982,1751069452650,-153.0,0.00021973,2]
[368238983,1751069452660,-153.0,0.00021973,2]
[368238984,1751069452669,-306.0,0.00021973,2]
[368238985,1751069452680,-153.0,0.00021973,2]
[368238986,1751069452690,-3000.0,0.0002198,2]
[368238987,1751069452699,-1885.0,0.00021982,2]
[368238988,1751069452709,-151.0,0.00021982,7]
[368238989,1751069452718,-174.318175,0.00021982,7]
[368238990,1751069452728,-174.318175,0.00021982,7]
[368238991,1751069452738,-157.989329,0.00021982,7]
[368238992,1751069452747,-3000.0,0.0002199,2]
[368238993,1751069452757,-1000.0,0.00021996,2]
[368238994,1751069452768,-9152.01,0.00022,7]
[368238995,1751069452777,-3088.88,0.00022,2]
[368238996,1751069452787,-151.0,0.00022,7]
[368238997,1751069452796,-3000.0,0.00022,2]
[368238998,1751069452806,-160.0,0.00022,7]
[368238999,1751069452815,-847.04181546,0.00022,7]
[368239000,1751069452825,-213.75309343,0.00022,7]
[368239001,1751069452834,-3000.0,0.0002201,2]
[368239002,1751069452843,-3000.0,0.0002202,2]
[368239003,1751069452853,-1000.0,0.00022023,2]
[368239004,1751069452865,-155.01070379,0.00022027,2]
[368239005,1751069452875,-3000.0,0.0002203,2]
[368239006,1751069452884,-304.861779,0.0002203,7]
[368239007,1751069452894,-304.861779,0.0002203,7]
[368239008,1751069452906,-500.0,0.00022034,2]
[368239009,1751069452915,-1001.08000748,0.00022034,2]
[368239010,1751069452925,-500.0,0.00022034,2]
[368239011,1751069452935,-500.0,0.00022034,2]
[368239012,1751069452944,-1200.0,0.00022034,2]
[368239013,1751069452954,-1000.0,0.00022034,2]
[368239014,1751069452963,-500.0,0.00022034,2]
[368239015,1751069452973,-3000.0,0.0002204,2]
[368239016,1751069452982,-200.0,0.0002205,4]
[368239017,1751069452991,-3000.0,0.0002205,2]
[368239018,1751069453000,-1756.0,0.00022055,2]
[368239019,1751069453010,-3000.0,0.0002206,2]
[368239020,1751069453020,-675.76168032,0.00022062,2]
[368239021,1751069453124,-3000.0,0.0002207,2]
[368239022,1751069453147,-3000.0,0.0002208,2]
[368239023,1751069453156,-3000.0,0.0002209,2]
[368239024,1751069453166,-3000.0,0.000221,2]
[368239025,1751069453175,-3000.0,0.0002211,2]
[368239026,1751069453185,-3000.0,0.0002212,2]
[368239027,1751069453195,-567.61125249,0.00022121,2]
[368239028,1751069453204,-1000.0,0.00022121,2]
[368239029,1751069453214,-1000.0,0.00022121,2]
[368239030,1751069453224,-634.30227546,0.00022121,2]
[368239031,1751069453233,-1000.0,0.00022121,2]
[368239032,1751069453242,-500.0,0.00022121,2]
[368239033,1751069453251,-3000.0,0.0002213,2]
[368239034,1751069453261,-151.0,0.0002213,7]
[368239035,1751069453270,-275.933794,0.0002213,7]
[368239036,1751069453279,-1000.0,0.00022136,2]
[368239037,1751069453289,-3000.0,0.0002214,2]
[368239038,1751069453299,-6289.26151161,0.00022141,6]
[368239039,1751069453308,-3000.0,0.0002215,2]
[368239040,1751069453317,-3000.0,0.0002216,2]
[368239041,1751069453326,-1756.0,0.00022161,2]
[368239042,1751069453335,-3000.0,0.0002217,2]
[368239043,1751069453345,-500.0,0.00022173,2]
[368239044,1751069453354,-3000.0,0.0002218,2]
[368239045,1751069453363,-215.0738,0.00022183,2]
[368239046,1751069453373,-3000.0,0.0002219,2]
[368239047,1751069453382,-460.0,0.00022191,2]
[368239048,1751069453391,-460.0,0.00022191,2]
[368239049,1751069453400,-155.218412,0.00022191,7]
[368239050,1751069453409,-155.218412,0.00022191,7]
[368239051,1751069453420,-444.34554033,0.00022191,2]
[368239052,1751069453431,-937.89,0.00022191,2]
[368239053,1751069453440,-606.81,0.00022191,2]
[368239054,1751069453449,-460.0,0.00022191,2]
[368239055,1751069453459,-1238.93,0.00022191,2]
[368239056,1751069453468,-500.0,0.00022191,2]
[368239057,1751069453478,-151.0,0.00022191,7]
[368239058,1751069453487,-553.24,0.00022191,2]
[368239059,1751069453497,-611.21,0.00022191,2]
[368239060,1751069453506,-460.0,0.00022191,2]
[368239061,1751069453515,-535.99549433,0.00022191,2]
[368239062,1751069453524,-460.0,0.00022191,2]
[368239063,1751069453534,-422.28546775,0.00022191,2]
[368239064,1751069453543,-460.0,0.00022191,2]
[368239065,1751069453552,-460.0,0.00022191,2]
[368239066,1751069453562,-299.852666,0.00022191,7]
[368239067,1751069453572,-299.852666,0.00022191,7]
[368239068,1751069453581,-1032.55,0.00022191,2]
[368239069,1751069453591,-460.0,0.00022191,2]
[368239070,1751069453600,-460.0,0.00022191,2]
[368239071,1751069453609,-534.35,0.00022191,2]
[368239072,1751069453619,-460.0,0.00022191,2]
[368239073,1751069453629,-656.78,0.00022191,2]
[368239074,1751069453639,-460.0,0.00022191,2]
[368239075,1751069453648,-755.37,0.00022191,2]
[368239076,1751069453658,-151.0,0.00022191,7]
[368239077,1751069453667,-460.0,0.00022191,2]
[368239078,1751069453677,-933.29,0.00022191,2]
[368239079,1751069453686,-2856.14,0.00022191,2]
[368239080,1751069453695,-4301.97,0.00022191,2]
[368239081,1751069453705,-151.0,0.00022191,7]
[368239082,1751069453715,-151.0,0.00022191,7]
[368239083,1751069453725,-460.0,0.00022191,2]
[368239084,1751069453734,-2953.07,0.00022191,2]
[368239085,1751069453744,-666.482233,0.00022191,7]
[368239086,1751069453754,-151.0,0.00022191,7]
[368239087,1751069453763,-666.482233,0.00022191,7]
[368239088,1751069453773,-683.51,0.00022191,2]
[368239089,1751069453782,-623.39,0.00022191,2]
[368239090,1751069453793,-967.54,0.00022191,2]
[368239091,1751069453802,-151.0,0.00022191,7]
[368239092,1751069453812,-151.0,0.00022191,7]
[368239093,1751069453822,-1174.69,0.00022191,2]
[368239094,1751069453831,-781.08,0.00022191,2]
[368239095,1751069453840,-1594.3,0.00022191,2]
[368239096,1751069453850,-868.86,0.00022191,2]
[368239097,1751069453860,-7532.63,0.00022191,2]
[368239098,1751069453872,-460.0,0.00022191,2]
[368239099,1751069453882,-151.0,0.00022191,7]
[368239100,1751069453892,-776.77,0.00022191,2]
[368239101,1751069453902,-460.0,0.00022191,2]
[368239102,1751069453912,-460.0,0.00022191,2]
[368239103,1751069453922,-460.0,0.00022191,2]
[368239104,1751069453932,-778.82,0.00022191,2]
[368239105,1751069453942,-6548.65,0.00022191,2]
[368239106,1751069453952,-4565.03,0.00022191,2]
[368239107,1751069453963,-460.0,0.00022191,2]
[368239108,1751069453972,-837.56,0.00022191,2]
[368239109,1751069453982,-2056.83,0.00022191,2]
[368239110,1751069453991,-773.6,0.00022191,2]
[368239111,1751069454002,-1651.62,0.00022191,2]
[368239112,1751069454011,-500.0,0.00022191,18]
[368239113,1751069454021,-460.0,0.00022191,2]
[368239114,1751069454031,-2412.84,0.00022191,2]
[368239115,1751069454040,-1798.36,0.00022191,2]
[368239116,1751069454050,-460.0,0.00022191,2]
[368239117,1751069454059,-881.93,0.00022191,2]
[368239118,1751069454068,-460.0,0.00022191,2]
[368239119,1751069454079,-708.68,0.00022191,2]
[368239120,1751069454088,-803.91,0.00022191,2]
[368239121,1751069454097,-1121.1,0.00022191,2]
[368239122,1751069454108,-2234.01,0.00022191,2]
[368239123,1751069454117,-1658.66,0.00022191,2]
[368239124,1751069454127,-1380.32,0.00022191,2]
[368239125,1751069454137,-993.99,0.00022191,2]
[368239126,1751069454147,-630.39,0.00022191,2]
[368239127,1751069454156,-785.84,0.00022191,2]
[368239128,1751069454165,-845.02,0.00022191,2]
[368239129,1751069454174,-767.01,0.00022191,2]
[368239130,1751069454184,-549.0,0.00022191,2]
[368239131,1751069454193,-546.95,0.00022191,2]
[368239132,1751069454202,-2948.91,0.00022191,2]
[368239133,1751069454211,-2571.3,0.00022191,2]
[368239134,1751069454221,-888.04,0.00022191,2]
[368239135,1751069454230,-665.68,0.00022191,2]
[368239136,1751069454240,-753.53,0.00022191,2]
[368239137,1751069454249,-903.14,0.00022191,2]
[368239138,1751069454258,-1322.41,0.00022191,2]
[368239139,1751069454268,-1293.98,0.00022191,2]
[368239140,1751069454277,-460.0,0.00022191,2]
[368239141,1751069454286,-123168.6,0.000222,7]
[368239142,1751069454296,-277.124772,0.000222,7]
[368239143,1751069454305,-3000.0,0.000222,2]
[368239144,1751069454314,-151.0,0.000222,7]
[368239145,1751069454323,-151.0,0.000222,7]
[368239146,1751069454332,-151.0,0.000222,7]
[368239147,1751069454341,-151.0,0.000222,7]
[368239148,1751069454351,-151.0,0.000222,7]
[368239149,1751069454360,-174.318175,0.000222,7]
[368239150,1751069454369,-174.318175,0.000222,7]
[368239151,1751069454379,-160.800168,0.000222,7]
[368239152,1751069454388,-302.443063,0.000222,7]
[368239153,1751069454398,-302.443063,0.000222,7]
[368239154,1751069454407,-978.942829,0.000222,7]
[368239155,1751069454416,-211.248514,0.000222,7]
[368239156,1751069454425,-978.942829,0.000222,7]
[368239157,1751069454435,-211.248514,0.000222,7]
[368239158,1751069454445,-178.490075,0.000222,7]
[368239159,1751069454454,-178.490075,0.000222,7]
[368239160,1751069454464,-151.0,0.000222,7]
[368239161,1751069454473,-151.0,0.000222,7]
[368239162,1751069454483,-200.42665,0.000222,7]
[368239163,1751069454493,-151.0,0.000222,7]
[368239164,1751069454503,-640.0,0.000222,2]
[368239165,1751069454512,-213.75309343,0.000222,7]
[368239166,1751069454522,-197.086534,0.000222,7]
[368239167,1751069454531,-197.086534,0.000222,7]
[368239168,1751069454542,-278.379418,0.000222,2]
[368239169,1751069454551,-278.379418,0.000222,2]
[368239170,1751069454561,-509.0,0.00022201,2]
[368239171,1751069454570,-1000.0,0.00022205,2]